fUSD/lending_fUSD_20260405
["ID","MTS","AMOUNT","RATE_DAILY","PERIOD"]
[419764237,1775362249153,-150.0,0.00015378,2]
[419764238,1775362249162,-150.0,0.0001538,2]
[419764240,1775362249171,-150.0,0.00015381,2]
[419764241,1775362249180,-316.05127925,0.00015384,2]
[419764242,1775362249190,-150.0,0.00015385,2]
[419764243,1775362249199,-1435.0,0.00015385,2]
[419764244,1775362249208,-150.0,0.0001539,2]
[419764245,1775362249217,-150.0,0.000154,2]
[419764246,1775362249226,-512.60947705,0.000154,2]
[419764247,1775362249236,-494.23746171,0.00015405,2]
[419764248,1775362249246,-948.57702395,0.00015405,2]
[419764249,1775362249255,-150.0,0.00015406,2]
[419764250,1775362249264,-633.6591824,0.00015407,2]
[419764251,1775362249273,-150.0,0.00015412,2]
[419764252,1775362249282,-500.0,0.00015419,2]
[419764253,1775362249291,-151.0,0.00015419,2]
[419764254,1775362249301,-150.0,0.00015429,2]
[419764255,1775362249311,-150.0,0.00015429,2]
[419764256,1775362249322,-150.0,0.00015432,2]
[419764257,1775362249333,-150.0,0.00015445,2]
[419764258,1775362249342,-150.0,0.0001545,2]
[419764259,1775362249351,-150.0,0.00015451,2]
[419764260,1775362249360,-150.0,0.00015467,2]
[419764261,1775362249371,-150.0,0.00015467,2]
[419764262,1775362249379,-150.0,0.00015467,2]
[419764263,1775362249389,-150.0,0.00015467,2]
[419764264,1775362249400,-5888.0,0.00015473,2]
[419764265,1775362249412,-500.0,0.00015474,2]
[419764266,1775362249422,-151.0,0.00015474,2]
[419764267,1775362249431,-150.0,0.00015478,2]
[419764268,1775362249440,-150.0,0.00015484,2]
[419764269,1775362249450,-150.0,0.00015486,2]
[419764270,1775362249458,-150.0,0.00015497,2]
[419764271,1775362249467,-1045.81,0.00015499,2]
[419764272,1775362249482,-1045.81,0.00015499,2]
[419764273,1775362249491,-1045.81,0.00015499,2]
[419764274,1775362249501,-1045.81,0.00015499,2]
[419764275,1775362249512,-1045.9710465,0.00015499,2]
[419764276,1775362249521,-150.0,0.000155,2]
[419764277,1775362249532,-5643.7200837,0.000155,3]
[419764278,1775362249541,-1231.52674065,0.000155,2]
[419764279,1775362249550,-150.0,0.00015505,2]
[419764280,1775362249560,-4000.0,0.00015507,2]
[419764281,1775362249570,-150.0,0.00015508,2]
[419764282,1775362249579,-150.0,0.0001551,2]
[419764283,1775362249590,-350.0,0.00015511,2]
[419764284,1775362249599,-500.0,0.00015529,2]
[419764285,1775362249608,-151.0,0.00015529,2]
[419764286,1775362249618,-150.0,0.00015535,2]
[419764287,1775362249627,-150.0,0.00015543,2]
[419764288,1775362249636,-150.0,0.00015543,2]
[419764289,1775362249645,-150.0,0.00015543,2]
[419764290,1775362249654,-150.0,0.00015543,2]
[419764291,1775362249665,-150.0,0.0001555,2]
[419764292,1775362249675,-150.0,0.00015556,2]
[419764293,1775362249684,-150.0,0.00015576,2]
[419764294,1775362249693,-150.0,0.00015581,2]
[419764295,1775362249702,-500.0,0.00015584,2]
[419764296,1775362249712,-151.0,0.00015584,2]
[419764297,1775362249721,-150.0,0.00015587,2]
[419764298,1775362249730,-150.0,0.00015589,2]
[419764299,1775362249740,-150.0,0.000156,2]
[419764300,1775362249749,-150.0,0.000156,2]
[419764301,1775362249758,-5100.0,0.000156,5]
[419764302,1775362249768,-150.0,0.00015608,2]
[419764303,1775362249777,-150.0,0.00015619,2]
[419764304,1775362249786,-150.0,0.00015631,2]
[419764305,1775362249799,-733.77686062,0.00015634,2]
[419764306,1775362249808,-150.0,0.00015634,2]
[419764307,1775362249817,-150.0,0.00015639,2]
[419764308,1775362249827,-500.0,0.00015639,2]
[419764309,1775362249836,-151.0,0.00015639,2]
[419764310,1775362249846,-150.0,0.00015641,2]
[419764311,1775362249855,-150.0,0.00015644,2]
[419764312,1775362249864,-150.0,0.00015644,2]
[419764313,1775362249873,-150.0,0.0001565,2]
[419764314,1775362249882,-150.0,0.00015657,2]
[419764315,1775362249891,-150.0,0.00015657,2]
[419764316,1775362249900,-150.0,0.00015673,2]
[419764317,1775362249910,-150.0,0.0001568,2]
[419764318,1775362249919,-295.27,0.00015685,2]
[419764319,1775362249928,-150.0,0.0001569,2]
[419764320,1775362249938,-10000.0,0.0001569,2]
[419764321,1775362249947,-10590.9494174,0.00015693,2]
[419764322,1775362249956,-500.0,0.00015694,2]
[419764323,1775362249965,-151.0,0.00015694,2]
[419764324,1775362249975,-150.0,0.00015695,2]
[419764325,1775362249984,-150.0,0.000157,2]
[419764326,1775362249998,-45605.91987901,0.000157,2]
[419764327,1775362250007,-1000.0,0.000157,5]
[419764328,1775362250017,-150.0,0.00015706,2]
[419764329,1775362250026,-640.78241969,0.00015708,2]
[419764330,1775362250037,-150.0,0.00015714,2]
[419764331,1775362250047,-350.0,0.00015715,2]
[419764332,1775362250056,-150.0,0.00015726,2]
[419764333,1775362250066,-1280.00821549,0.00015731,2]
[419764334,1775362250076,-150.0,0.00015733,2]
[419764335,1775362250085,-150.0,0.00015733,2]
[419764336,1775362250095,-5919.34,0.00015736,2]
[419764337,1775362250105,-150.0,0.00015739,2]
[419764338,1775362250115,-150.0,0.00015742,2]
[419764339,1775362250124,-200.0,0.00015747,2]
[419764340,1775362250134,-1481.23780761,0.00015747,2]
[419764341,1775362250143,-200.0,0.00015747,2]
[419764342,1775362250152,-771.01748645,0.00015747,2]
[419764343,1775362250162,-181.08010149,0.00015747,2]
[419764344,1775362250171,-719.04747942,0.00015747,2]
[419764345,1775362250181,-349.4458247,0.00015747,2]
[419764346,1775362250192,-500.0,0.00015749,2]
[419764347,1775362250203,-151.0,0.00015749,2]
[419764348,1775362250212,-150.0,0.0001575,2]
[419764349,1775362250221,-150.0,0.00015754,2]
[419764350,1775362250231,-150.0,0.00015771,2]
[419764351,1775362250241,-150.0,0.00015771,2]
[419764352,1775362250251,-150.0,0.00015771,2]
[419764353,1775362250261,-150.0,0.00015771,2]
[419764354,1775362250271,-398.89448034,0.0001578,2]
[419764355,1775362250280,-516.63,0.00015789,2]
[419764356,1775362250289,-516.63,0.00015789,2]
[419764357,1775362250299,-516.63,0.00015789,2]
[419764358,1775362250308,-516.63,0.00015789,2]
[419764359,1775362250318,-516.63,0.00015789,2]
[419764360,1775362250327,-516.63,0.00015789,2]
[419764361,1775362250338,-516.63,0.00015789,2]
[419764362,1775362250348,-516.63,0.00015789,2]
[419764363,1775362250357,-516.63,0.00015789,2]
[419764364,1775362250366,-516.63,0.00015789,2]
[419764365,1775362250375,-516.63,0.00015789,2]
[419764366,1775362250384,-516.63,0.00015789,2]
[419764367,1775362250394,-516.63,0.00015789,2]
[419764368,1775362250403,-516.71178076,0.00015789,2]
[419764369,1775362250412,-765.37,0.00015789,2]
[419764370,1775362250422,-765.37,0.00015789,2]
[419764371,1775362250432,-765.37,0.00015789,2]
[419764372,1775362250441,-765.37,0.00015789,2]
[419764373,1775362250450,-765.37,0.00015789,2]
[419764374,1775362250460,-765.37,0.00015789,2]
[419764375,1775362250469,-765.37,0.00015789,2]
[419764376,1775362250479,-765.37,0.00015789,2]
[419764377,1775362250488,-765.37,0.00015789,2]
[419764378,1775362250497,-765.37,0.00015789,2]
[419764379,1775362250508,-765.37,0.00015789,2]
[419764380,1775362250518,-765.37,0.00015789,2]
[419764381,1775362250528,-765.37,0.00015789,2]
[419764382,1775362250537,-765.50278756,0.00015789,2]
[419764383,1775362250547,-500.0,0.00015789,2]
[419764384,1775362250556,-500.0,0.00015789,2]
[419764385,1775362250566,-500.0,0.00015789,2]
[419764386,1775362250575,-500.0,0.00015789,2]
[419764387,1775362250584,-500.0,0.00015789,2]
[419764388,1775362250594,-592.62397972,0.00015789,2]
[419764389,1775362250603,-500.0,0.00015789,2]
[419764390,1775362250612,-484.03247685,0.00015789,2]
[419764391,1775362250622,-500.0,0.00015789,2]
[419764392,1775362250631,-500.0,0.00015789,2]
[419764393,1775362250641,-500.0,0.00015789,2]
[419764394,1775362250651,-500.0,0.00015789,2]
[419764395,1775362250661,-500.0,0.00015789,2]
[419764396,1775362250670,-500.0,0.00015789,2]
[419764397,1775362250679,-500.0,0.00015789,2]
[419764398,1775362250689,-292.1,0.00015789,2]
[419764399,1775362250698,-500.0,0.00015789,2]
[419764400,1775362250707,-500.0,0.00015789,2]
[419764401,1775362250717,-500.0,0.00015789,2]
[419764402,1775362250727,-500.0,0.00015789,2]
[419764403,1775362250736,-422.60958238,0.00015789,2]
[419764404,1775362250745,-151.0,0.0001579,2]
[419764405,1775362250755,-151.0,0.0001579,2]
[419764406,1775362250764,-151.0,0.0001579,2]
[419764407,1775362250774,-151.0,0.0001579,2]
[419764408,1775362250783,-240.144087,0.0001579,2]
[419764409,1775362250792,-672.962147,0.0001579,2]
[419764410,1775362250802,-672.962147,0.0001579,2]
[419764411,1775362250811,-672.962147,0.0001579,2]
[419764412,1775362250821,-672.962147,0.0001579,2]
[419764413,1775362250831,-332.258444,0.0001579,2]
[419764414,1775362250840,-332.258444,0.0001579,2]
[419764415,1775362250849,-332.258444,0.0001579,2]
[419764416,1775362250859,-332.258444,0.0001579,2]
[419764417,1775362250868,-553.958559,0.0001579,2]
[419764418,1775362250878,-553.958559,0.0001579,2]
[419764419,1775362250887,-553.958559,0.0001579,2]
[419764420,1775362250896,-553.958559,0.0001579,2]
[419764421,1775362250906,-488.611803,0.0001579,2]
[419764422,1775362250916,-488.611803,0.0001579,2]
[419764423,1775362250925,-488.611803,0.0001579,2]
[419764424,1775362250934,-488.611803,0.0001579,2]
[419764425,1775362250944,-851.442194,0.0001579,2]
[419764426,1775362250953,-851.442194,0.0001579,2]
[419764427,1775362250962,-851.442194,0.0001579,2]
[419764428,1775362250971,-851.442194,0.0001579,2]
[419764429,1775362250981,-151.0,0.0001579,2]
[419764430,1775362250990,-151.0,0.0001579,2]
[419764431,1775362250998,-151.0,0.0001579,2]
[419764432,1775362251008,-2500000.0,0.0001579,2]
[419764433,1775362251018,-150.0,0.00015794,2]
[419764434,1775362251027,-1435.0,0.000158,2]
[419764435,1775362251037,-150.0,0.000158,2]
[419764436,1775362251046,-1000.0,0.000158,5]
[419764437,1775362251056,-178.0,0.000158,2]
[419764438,1775362251066,-150.0,0.00015804,2]
[419764439,1775362251075,-150.0,0.0001581,2]
[419764440,1775362251084,-150.0,0.00015817,2]
[419764441,1775362251094,-227.692277,0.00015821,2]
[419764442,1775362251104,-1000.0,0.00015821,2]
[419764443,1775362251113,-1000.0,0.00015821,2]
[419764444,1775362251122,-1000.0,0.00015821,2]
[419764445,1775362251132,-1006.60866792,0.00015821,2]
[419764446,1775362251141,-1000.0,0.00015821,2]
[419764447,1775362251151,-500.0,0.00015821,2]
[419764448,1775362251161,-1000.0,0.00015821,2]
[419764449,1775362251170,-1000.0,0.00015821,2]
[419764450,1775362251179,-500.0,0.00015821,2]
[419764451,1775362251198,-500.0,0.00015821,2]
[419764452,1775362251210,-500.0,0.00015821,2]
[419764453,1775362251219,-762.51968471,0.00015821,2]
[419764454,1775362251230,-420.84825679,0.00015821,2]
[419764455,1775362251239,-1000.0,0.00015821,2]
[419764456,1775362251249,-6898.493,0.00015822,2]
[419764457,1775362251259,-321.425,0.00015822,2]
[419764458,1775362251268,-150.0,0.00015822,2]
[419764459,1775362251277,-150.0,0.00015822,2]
[419764460,1775362251287,-150.0,0.00015829,2]
[419764461,1775362251296,-5888.0,0.00015831,2]
[419764462,1775362251306,-150.0,0.00015837,2]
[419764463,1775362251315,-2000.0,0.0001584,2]
[419764464,1775362251324,-2000.0,0.0001584,2]
[419764465,1775362251334,-5888.0,0.00015842,2]
[419764466,1775362251344,-150.0,0.00015845,2]
[419764467,1775362251353,-150.0,0.00015848,2]
[419764468,1775362251363,-5888.0,0.00015849,2]
[419764469,1775362251372,-150.0,0.0001585,2]
[419764470,1775362251381,-2000.0,0.0001585,2]
[419764471,1775362251391,-150.0,0.00015863,2]
[419764472,1775362251400,-150.0,0.00015869,2]
[419764473,1775362251410,-500.0,0.00015871,2]
[419764474,1775362251420,-500.0,0.00015872,2]
[419764475,1775362251430,-500.0,0.00015872,2]
[419764476,1775362251440,-200.0,0.00015872,2]
[419764477,1775362251450,-150.0,0.00015877,2]
[419764478,1775362251460,-150.0,0.00015886,2]
[419764479,1775362251469,-150.0,0.00015886,2]
[419764480,1775362251479,-2500.0,0.0001589,2]
[419764481,1775362251488,-506.22994168,0.0001589,2]
[419764482,1775362251497,-2500.0,0.0001589,2]
[419764483,1775362251506,-2006.37622858,0.0001589,2]
[419764484,1775362251516,-4000.0,0.00015895,2]
[419764485,1775362251525,-150.0,0.00015897,2]
[419764486,1775362251535,-1000.0,0.000159,2]
[419764487,1775362251545,-20000.0,0.000159,2]
[419764488,1775362251554,-150.0,0.000159,2]
[419764489,1775362251564,-1000.0,0.000159,5]
[419764490,1775362251574,-9397.38121153,0.000159,2]
[419764491,1775362251583,-982.40749698,0.000159,2]
[419764492,1775362251592,-494.23746171,0.000159,2]
[419764493,1775362251602,-948.57702395,0.000159,2]
[419764494,1775362251612,-1712.0,0.000159,5]
[419764495,1775362251621,-1541.97906342,0.00015901,2]
[419764496,1775362251631,-150.0,0.00015902,2]
[419764497,1775362251641,-150.0,0.00015909,2]
[419764498,1775362251650,-150.0,0.00015911,2]
[419764499,1775362251660,-150.0,0.00015924,2]
[419764500,1775362251670,-150.0,0.00015935,2]
[419764501,1775362251680,-5888.0,0.00015942,2]
[419764502,1775362251692,-150.0,0.00015943,2]
[419764503,1775362251702,-150.0,0.00015948,2]
[419764504,1775362251711,-150.0,0.0001595,2]
[419764505,1775362251720,-150.0,0.00015954,2]
[419764506,1775362251730,-169.006862,0.00015956,2]
[419764507,1775362251739,-157.0,0.00015956,2]
[419764508,1775362251748,-13885.1859202,0.00015959,2]
[419764509,1775362251758,-10772.328644,0.00015959,2]
[419764510,1775362251768,-5412.5680218,0.00015959,2]
[419764511,1775362251777,-515.6803112,0.00015959,2]
[419764512,1775362251787,-150.0,0.00015962,2]
[419764513,1775362251796,-150.0,0.00015967,2]
[419764514,1775362251806,-350.0,0.00015972,2]
[419764515,1775362251816,-398.89448034,0.0001599,2]
[419764516,1775362251826,-159.665859,0.00015997,2]
[419764517,1775362251835,-159.665859,0.00015997,2]
[419764518,1775362251845,-666.0,0.00015999,2]
[419764519,1775362251854,-150.14541726,0.00016,2]
[419764520,1775362251864,-153.46464447,0.00016,2]
[419764521,1775362251874,-220.91873511,0.00016,2]
[419764522,1775362251885,-245.08435541,0.00016,2]
[419764523,1775362251895,-150.17540857,0.00016,2]
[419764524,1775362251905,-151.90807937,0.00016,2]
[419764525,1775362251915,-150.60277619,0.00016,2]
[419764526,1775362251925,-151.01430456,0.00016,2]
[419764527,1775362251935,-151.22967101,0.00016,2]
[419764528,1775362251946,-155.28502634,0.00016,2]
[419764529,1775362251956,-287.38140471,0.00016,2]
[419764530,1775362251966,-154.07899059,0.00016,2]
[419764531,1775362251976,-151.75828689,0.00016,2]
[419764532,1775362251985,-154.24536523,0.00016,2]
[419764533,1775362251995,-244555.50135803,0.00016,2]
[419764534,1775362255385,-1487.0,0.00014291,2]
[419764535,1775362255395,-1489.17789147,0.00014291,2]
[419764536,1775362255404,-151.0,0.0001579,2]
[419764537,1775362255413,-58468.4273894,0.00016,2]
[419764538,1775362256392,-483.00119782,0.00011473,2]
[419764539,1775362256411,-339.24487988,0.00011473,2]
[419764540,1775362256420,-219.48,0.00013699,2]
[419764541,1775362256430,-222733.35853549,0.00015109,2]
[419764542,1775362256442,-1913.17795768,0.00015109,2]
[419764543,1775362256453,-614.65869694,0.00015109,2]
[419764560,1775362888473,9114.57,9.773e-05,2]
[419764561,1775362888495,885.43,9.773e-05,2]
[419764562,1775362898539,9114.58,9.773e-05,2]
[419764563,1775362898562,885.42,9.773e-05,2]
[419764564,1775362909677,10000.0,9.773e-05,2]
[419764566,1775362918432,0.01,9.773e-05,2]
[419764567,1775362918454,9999.99,9.773e-05,2]
[419764568,1775362934627,0.02,9.773e-05,2]
[419764569,1775362934649,5459.98,9.773e-05,2]
[419764574,1775363432348,-1195.0,0.000105,5]
[419764575,1775363432357,-43.92081842,0.00011097,2]
[419764576,1775363432402,-1486.82918158,0.00011097,2]
[419764577,1775363432413,-300.0,0.00011549,2]
[419764578,1775363432422,-1200.0,0.00011549,2]
[419764579,1775363432433,-300.0,0.00011549,2]
[419764580,1775363432442,-600.0,0.0001155,2]
[419764581,1775363432453,-3372.75255751,0.0001155,2]
[419764582,1775363432463,-455.0,0.00011672,2]
[419764584,1775363432472,-300.0,0.0001177,2]
[419764586,1775363432481,-480.0,0.00012704,2]
[419764589,1775363432491,-151.53,0.00012828,2]
[419764591,1775363432500,-229.44020132,0.00012924,2]
[419764592,1775363432510,-281.02,0.00012946,2]
[419764593,1775363432519,-501.0,0.00013111,2]
[419764595,1775363432529,-165.0,0.0001315,2]
[419764597,1775363432538,-3240.0,0.00013425,2]
[419764599,1775363432547,-10000.01,0.00013499,2]
[419764600,1775363432556,-500.0,0.00013523,2]
[419764601,1775363432566,-682.46,0.00013537,2]
[419764602,1775363432575,-9404.61812408,0.00013598,2]
[419764603,1775363432584,-10000.0,0.00013599,2]
[419764604,1775363432593,-200.0,0.000136,2]
[419764605,1775363432603,-151.0,0.000136,2]
[419764606,1775363432612,-151.0,0.000136,2]
[419764607,1775363432621,-151.0,0.000136,2]
[419764609,1775363432630,-151.0,0.000136,2]
[419764610,1775363432639,-151.0,0.000136,2]
[419764612,1775363432649,-151.0,0.000136,2]
[419764614,1775363432659,-151.0,0.000136,2]
[419764615,1775363432669,-151.0,0.000136,2]
[419764616,1775363432678,-151.0,0.000136,2]
[419764617,1775363432688,-151.0,0.000136,2]
[419764618,1775363432698,-151.0,0.000136,2]
[419764619,1775363432707,-1438.09495884,0.000136,2]
[419764620,1775363432717,-16404.97,0.00013608,2]
[419764621,1775363432726,-1500.0,0.00013645,2]
[419764622,1775363432735,-150.0,0.00013699,2]
[419764623,1775363432746,-200.0,0.00013699,2]
[419764624,1775363432756,-230.5,0.00013699,2]
[419764625,1775363432766,-150.0,0.00013774,2]
[419764626,1775363432775,-166.66,0.00013825,2]
[419764627,1775363432785,-250.0,0.00013874,2]
[419764628,1775363432795,-150.0,0.00013973,2]
[419764629,1775363432806,-200.0,0.00014148,2]
[419764630,1775363432815,-150.0,0.00014247,2]
[419764631,1775363432824,-166.66,0.00014281,2]
[419764632,1775363432834,-1149.64,0.00014317,2]
[419764633,1775363432843,-500.17887763,0.0001434,2]
[419764634,1775363432853,-500.11329592,0.0001434,2]
[419764635,1775363432863,-500.0,0.0001434,2]
[419764636,1775363432875,-500.0,0.0001434,2]
[419764637,1775363432886,-150.0,0.000144,2]
[419764638,1775363432895,-150.14541725,0.000144,2]
[419764639,1775363432905,-150.0,0.000144,2]
[419764640,1775363432915,-150.0,0.000144,2]
[419764641,1775363432926,-150.17540857,0.000144,2]
[419764642,1775363432935,-150.0,0.000144,2]
[419764643,1775363432945,-150.0,0.000144,2]
[419764644,1775363432954,-150.0,0.000144,2]
[419764645,1775363432963,-150.0,0.000144,2]
[419764646,1775363432973,-150.0,0.000144,2]
[419764647,1775363432983,-150.0,0.000144,2]
[419764648,1775363432992,-151.01430456,0.000144,2]
[419764649,1775363433002,-150.0,0.000144,2]
[419764650,1775363433011,-150.0,0.000144,2]
[419764651,1775363433021,-500.0,0.000144,2]
[419764652,1775363433030,-500.0,0.000144,2]
[419764653,1775363433039,-500.0,0.000144,2]
[419764654,1775363433048,-500.0,0.000144,2]
[419764655,1775363433058,-527.35699727,0.000144,2]
[419764656,1775363433067,-500.0,0.000144,2]
[419764657,1775363433077,-500.0,0.000144,2]
[419764658,1775363433086,-500.0,0.000144,2]
[419764659,1775363433095,-500.0,0.000144,2]
[419764660,1775363433104,-500.0,0.000144,2]
[419764661,1775363433113,-500.0,0.000144,2]
[419764662,1775363433122,-500.0,0.000144,2]
[419764663,1775363433132,-500.0,0.000144,2]
[419764664,1775363433141,-500.0,0.00014438,2]
[419764665,1775363433151,-150.0,0.00014467,2]
[419764666,1775363433161,-150.0,0.0001448,2]
[419764667,1775363433170,-150.0,0.00014494,2]
[419764668,1775363433179,-299.99,0.00014504,2]
[419764669,1775363433189,-150.99,0.00014504,2]
[419764670,1775363433198,-3359.23,0.00014504,2]
[419764671,1775363433209,-150.0,0.00014514,2]
[419764672,1775363433218,-150.0,0.00014514,2]
[419764673,1775363433228,-150.0,0.00014523,2]
[419764674,1775363433238,-150.0,0.00014533,2]
[419764675,1775363433248,-150.0,0.0001456,2]
[419764676,1775363433258,-150.0,0.00014588,2]
[419764677,1775363433268,-1149.64,0.00014591,2]
[419764678,1775363433278,-160.9517,0.000146,2]
[419764679,1775363433288,-150.0,0.000146,2]
[419764680,1775363433298,-150.0,0.00014629,2]
[419764681,1775363433308,-150.0,0.00014629,2]
[419764682,1775363433318,-150.0,0.00014629,2]
[419764683,1775363433328,-501.0,0.00014631,3]
[419764684,1775363433337,-150.0,0.0001464,2]
[419764685,1775363433347,-150.0,0.00014646,2]
[419764686,1775363433357,-150.0,0.00014667,2]
[419764687,1775363433366,-150.0,0.00014667,2]
[419764688,1775363433376,-150.0,0.00014682,2]
[419764689,1775363433386,-160.9517,0.000147,2]
[419764690,1775363433395,-200.0,0.000147,5]
[419764691,1775363433405,-160.0,0.00014709,2]
[419764692,1775363433415,-274.641366,0.00014709,2]
[419764693,1775363433424,-389.282733,0.00014709,2]
[419764694,1775363433433,-232.425067,0.00014709,7]
[419764695,1775363433443,-150.0,0.0001472,2]
[419764696,1775363433453,-150.0,0.00014733,2]
[419764697,1775363433463,-166.66,0.00014737,2]
[419764698,1775363433472,-150.0,0.00014743,2]
[419764699,1775363433482,-150.0,0.00014743,2]
[419764700,1775363433492,-480.34,0.00014744,2]
[419764701,1775363433502,-150.0,0.00014769,2]
[419764702,1775363433512,-150.0,0.00014776,2]
[419764703,1775363433522,-150.0,0.000148,2]
[419764704,1775363433531,-150.0,0.000148,2]
[419764705,1775363433541,-150.0,0.000148,2]
[419764706,1775363433551,-400.0,0.000148,5]
[419764707,1775363433560,-362.571764,0.00014807,7]
[419764708,1775363433835,-281.050721,0.00014807,2]
[419764709,1775363433868,-166.647892,0.00014807,7]
[419764710,1775363433879,-201.711753,0.00014807,7]
[419764711,1775363433889,-218.027227,0.00014807,2]
[419764712,1775363433899,-1325.4367,0.00014808,2]
[419764713,1775363433909,-653.18503451,0.00014833,2]
[419764714,1775363433919,-150.0,0.00014857,2]
[419764715,1775363433928,-150.0,0.00014857,2]
[419764716,1775363433938,-150.0,0.00014857,2]
[419764717,1775363433947,-1149.64,0.00014865,2]
[419764718,1775363433957,-150.0,0.00014867,2]
[419764719,1775363433967,-150.0,0.00014871,2]
[419764720,1775363433976,-150.0,0.0001488,2]
[419764721,1775363433985,-160.0,0.00014891,2]
[419764722,1775363433994,-150.0,0.00014892,2]
[419764723,1775363434004,-600.0,0.000149,5]
[419764724,1775363434013,-2325.1708,0.00014908,2]
[419764725,1775363434022,-58320.4956,0.00014908,2]
[419764726,1775363434031,-2500.0,0.00014908,2]
[419764727,1775363434040,-500.0,0.00014914,2]
[419764728,1775363434051,-500.0,0.00014914,2]
[419764729,1775363434061,-500.0,0.00014914,2]
[419764730,1775363434070,-500.0,0.00014914,2]
[419764731,1775363434079,-500.0,0.00014914,2]
[419764732,1775363434088,-500.0,0.00014914,2]
[419764733,1775363434099,-500.0,0.00014914,2]
[419764734,1775363434108,-500.0,0.00014914,2]
[419764735,1775363434119,-500.0,0.00014914,2]
[419764736,1775363434129,-4310.24669032,0.00014915,2]
[419764737,1775363434138,-11969.94199863,0.00014915,2]
[419764738,1775363434148,-3734.44938532,0.00014915,2]
[419764739,1775363434158,-548.1640518,0.00014915,2]
[419764740,1775363434167,-150.0,0.00014933,2]
[419764741,1775363434177,-150.0,0.00014933,2]
[419764742,1775363434186,-653.18503442,0.00014952,2]
[419764743,1775363434196,-150.0,0.0001496,2]
[419764744,1775363434205,-150.0,0.00014965,2]
[419764745,1775363434214,-150.0,0.00014971,2]
[419764746,1775363434224,-150.0,0.00014971,2]
[419764747,1775363434234,-332.0,0.00015,2]
[419764748,1775363434243,-150.0,0.00015,2]
[419764749,1775363434253,-500.0,0.00015008,2]
[419764750,1775363434262,-533.26,0.00015008,2]
[419764751,1775363434273,-500.0,0.00015008,2]
[419764752,1775363434282,-500.0,0.00015008,2]
[419764753,1775363434294,-530.74,0.00015008,2]
[419764754,1775363434303,-500.0,0.00015008,2]
[419764755,1775363434313,-500.0,0.00015008,2]
[419764756,1775363434322,-333.71531096,0.00015008,2]
[419764757,1775363434331,-500.0,0.00015008,2]
[419764758,1775363434340,-500.0,0.00015008,2]
[419764759,1775363434350,-476.16705547,0.00015008,2]
[419764760,1775363434359,-500.0,0.00015008,2]
[419764761,1775363434368,-500.0,0.00015008,2]
[419764762,1775363434378,-500.0,0.00015008,2]
[419764763,1775363434387,-500.0,0.00015008,2]
[419764764,1775363434397,-500.0,0.00015008,2]
[419764765,1775363434407,-500.0,0.00015008,2]
[419764766,1775363434416,-166.9120835,0.00015008,2]
[419764767,1775363434426,-500.0,0.00015008,2]
[419764768,1775363434435,-462.56936555,0.00015008,2]
[419764769,1775363434445,-300.0,0.00015008,2]